bitfinex/quotes_BTCUSD_20250204
["timestamp","ask_amount","ask_price","bid_price","bid_amount"]
[1738704508789,0.2917071,97266.0,97265.0,0.01878266]
[1738704508961,0.2827071,97266.0,97265.0,0.01878266]
[1738704509319,0.3107071,97266.0,97265.0,0.01878266]
[1738704509435,0.3017071,97266.0,97265.0,0.01878266]
[1738704509836,0.3107071,97266.0,97265.0,0.01878266]
[1738704510047,0.3017071,97266.0,97265.0,0.01878266]
[1738704510855,0.29137647,97266.0,97265.0,0.01878266]
[1738704511111,0.29329647,97266.0,97265.0,0.01878266]
[1738704511327,0.01,97252.0,97251.0,0.03320129]
[1738704511483,0.17089926,97235.0,97234.0,0.0001069]
[1738704511681,0.16427,97232.0,97231.0,0.0007871]
[1738704511887,0.16090426,97232.0,97231.0,0.0007871]
[1738704512089,0.16427,97232.0,97231.0,0.0007871]
[1738704512312,0.15427,97232.0,97231.0,0.0007871]
[1738704512524,0.16427,97232.0,97231.0,0.0007871]
[1738704512836,0.16441107,97232.0,97231.0,0.0007871]
[1738704512978,0.18004533,97232.0,97231.0,0.0007871]
[1738704513177,0.18904533,97232.0,97231.0,0.0007871]
[1738704513594,0.18241107,97232.0,97231.0,0.0007871]
[1738704513812,0.18904533,97232.0,97231.0,0.0007871]
[1738704514018,0.16341107,97232.0,97231.0,0.0007871]
[1738704514446,0.15441107,97232.0,97231.0,0.0007871]
[1738704514607,0.16341107,97232.0,97231.0,0.0007871]
[1738704514808,0.00914107,97232.0,97231.0,0.0007871]
[1738704515445,0.01814107,97232.0,97231.0,0.0007871]
[1738704515693,0.00914107,97232.0,97231.0,0.0007871]
[1738704515887,0.01814107,97232.0,97231.0,0.0007871]
[1738704516048,0.00914107,97232.0,97231.0,0.0007871]
[1738704516397,0.00214107,97232.0,97231.0,0.00069806]
[1738704516606,0.00414107,97232.0,97231.0,0.00069806]
[1738704516922,0.00414107,97232.0,97231.0,0.01744805]
[1738704517104,0.00414107,97232.0,97231.0,0.00069806]
[1738704517654,0.00214107,97232.0,97231.0,0.00069806]
[1738704517849,0.00203118,97232.0,97231.0,0.00069806]
[1738704518058,0.00203118,97232.0,97231.0,0.15435462]
[1738704518268,0.00103118,97232.0,97231.0,0.15435462]
[1738704518490,0.00103118,97232.0,97231.0,0.23275326]
[1738704519094,0.00203118,97232.0,97231.0,0.23275326]
[1738704519273,0.0019266,97232.0,97231.0,0.23275326]
[1738704519473,0.154255,97241.0,97235.0,0.154265]
[1738704519686,0.0822491,97242.0,97235.0,0.00047129]
[1738704519909,0.154255,97241.0,97236.0,0.04394185]
[1738704520126,0.154255,97241.0,97235.0,0.00047129]
[1738704520569,0.0822491,97242.0,97235.0,0.00047129]
[1738704521128,0.205666,97245.0,97235.0,0.00047129]
[1738704521331,0.154256,97241.0,97235.0,0.00047129]
[1738704521557,0.00663426,97250.0,97235.0,0.00047129]
[1738704521763,0.154259,97239.0,97235.0,0.00047129]
[1738704521962,0.154263,97236.0,97235.0,0.00047129]
[1738704522132,0.26328232,97236.0,97235.0,0.00047129]
[1738704523207,0.27318489,97236.0,97235.0,0.00047129]
[1738704523580,0.17079983,97236.0,97235.0,0.00047129]
[1738704523964,0.17079983,97236.0,97211.0,0.154302]
[1738704523965,0.17093126,97215.0,97196.0,0.0073863]
[1738704524162,0.27485942,97215.0,97196.0,0.0073863]
[1738704524409,0.27331632,97215.0,97196.0,0.0073863]
[1738704524607,0.17093126,97215.0,97196.0,0.0073863]
[1738704524833,0.16093126,97215.0,97200.0,0.157844]
[1738704525005,0.154297,97215.0,97200.0,0.003524]
[1738704525253,0.154297,97215.0,97202.0,0.154317]
[1738704525458,0.16319958,97215.0,97200.0,0.003524]
[1738704525629,0.16319958,97215.0,97205.0,0.179312]
[1738704525630,0.15419958,97215.0,97205.0,0.179312]
[1738704525792,0.205718,97220.0,97209.0,0.20574]
[1738704525989,0.009,97215.0,97214.0,0.15455053]
[1738704526345,0.009,97215.0,97214.0,0.00025253]
[1738704526721,0.018,97215.0,97214.0,0.00025253]
[1738704527105,0.018,97215.0,97212.0,0.154301]
[1738704527296,0.018,97215.0,97206.0,0.205748]
[1738704527492,0.018,97215.0,97208.0,0.154308]
[1738704527727,0.027,97215.0,97207.0,0.02330349]
[1738704527930,0.027,97215.0,97211.0,0.154303]
[1738704528254,0.1543,97213.0,97207.0,0.02330349]
[1738704528405,0.154308,97208.0,97207.0,0.02330349]
[1738704528607,0.008,97215.0,97205.0,0.03235938]
[1738704528812,0.154311,97206.0,97205.0,0.03235938]
[1738704529827,0.20574,97210.0,97205.0,0.03235938]
[1738704530036,0.00047187,97214.0,97205.0,0.03235938]
[1738704530457,0.00047187,97214.0,97213.0,0.1543]
[1738704530641,0.00047187,97214.0,97213.0,0.17996851]
[1738704531091,0.00047187,97214.0,97213.0,0.1543]
[1738704531897,0.00947187,97214.0,97213.0,0.1543]
[1738704532151,0.00147187,97214.0,97213.0,0.1543]
[1738704532377,0.00347187,97214.0,97213.0,0.1543]
[1738704532957,0.00547187,97214.0,97205.0,0.03235938]
[1738704533154,0.154311,97206.0,97205.0,0.02386995]
[1738704534540,0.154311,97206.0,97205.0,0.02486995]
[1738704534920,0.155311,97206.0,97205.0,0.02386995]
[1738704535120,0.164311,97206.0,97205.0,0.02386995]
[1738704535329,0.163311,97206.0,97205.0,0.02386995]
[1738704535935,0.009,97206.0,97205.0,0.02386995]
[1738704536111,0.011,97206.0,97205.0,0.02386995]
[1738704536871,0.011,97206.0,97205.0,0.04378264]
[1738704537076,0.01096,97206.0,97205.0,0.02378089]
[1738704537413,0.205737,97212.0,97205.0,0.02378089]
[1738704537619,0.011,97206.0,97205.0,0.02378089]
[1738704538018,0.002,97206.0,97205.0,0.02378089]
[1738704538271,0.003,97206.0,97205.0,0.27001018]
[1738704538477,0.004,97206.0,97205.0,0.27001018]
[1738704538837,0.004,97206.0,97205.0,0.37239524]
[1738704539606,0.004,97206.0,97205.0,0.52239524]
[1738704540492,0.001,97206.0,97205.0,0.52239524]
[1738704540726,0.003,97206.0,97205.0,0.52239524]
[1738704540937,0.002,97206.0,97205.0,0.59819524]
[1738704541141,0.00047187,97214.0,97213.0,0.3043]
[1738704541342,0.00047187,97214.0,97213.0,0.45768966]
[1738704541953,0.0822491,97234.0,97223.0,0.154284]
[1738704542100,0.0822491,97234.0,97223.0,0.25666906]
[1738704542520,0.0822491,97234.0,97233.0,0.154268]
[1738704542938,0.0822491,97244.0,97223.0,0.10238506]
[1738704543295,0.154255,97242.0,97224.0,0.33890507]
[1738704543497,0.0822491,97244.0,97224.0,0.13319507]
[1738704543671,0.0822491,97244.0,97224.0,0.10238506]
[1738704543850,0.2879191,97244.0,97224.0,0.10238506]
[1738704544075,0.0822491,97244.0,97232.0,0.205693]
[1738704544259,0.0822491,97244.0,97226.0,0.205706]
[1738704544457,0.0822491,97244.0,97237.0,0.154261]
[1738704544640,0.0832491,97244.0,97238.0,0.0359949]
[1738704545021,0.00663426,97246.0,97235.0,0.154265]
[1738704545221,0.00663426,97246.0,97227.0,0.10238506]
[1738704545443,0.001,97244.0,97236.0,0.154262]
[1738704545639,0.001,97244.0,97226.0,0.206706]
[1738704545640,0.18463416,97243.0,97226.0,0.001]
[1738704545845,0.00663426,97236.0,97230.0,0.154273]
[1738704546044,0.00663426,97236.0,97232.0,0.15427]
[1738704546298,0.00663426,97236.0,97231.0,0.1697973]
[1738704546655,0.00663426,97241.0,97231.0,0.0155273]
[1738704546828,0.0822491,97243.0,97231.0,0.0155273]
[1738704546829,0.00663426,97242.0,97237.0,0.15426]
[1738704547031,0.0822491,97243.0,97235.0,0.02080103]
[1738704547232,0.004,97244.0,97236.0,0.154263]
[1738704547610,0.00663426,97246.0,97235.0,0.02080103]
[1738704547813,0.00663426,97246.0,97236.0,0.359948]
[1738704548015,0.00663426,97240.0,97237.0,0.005]
[1738704548556,0.00663426,97240.0,97236.0,0.154263]
[1738704548757,0.002,97242.0,97236.0,0.2129075]
[1738704548963,0.00863426,97242.0,97236.0,0.0586455]
[1738704549173,0.00853225,97242.0,97238.0,0.15426]
[1738704549344,0.00853225,97242.0,97235.0,0.02480103]
[1738704549544,0.00853225,97242.0,97235.0,0.17906603]
[1738704549955,0.01,97245.0,97235.0,0.17906603]
[1738704549956,0.00663426,97243.0,97236.0,0.205685]
[1738704550157,0.00663426,97242.0,97237.0,0.154262]
[1738704550361,0.00663426,97242.0,97238.0,0.0586439]
[1738704550362,0.002,97240.0,97238.0,0.0586439]
[1738704550513,0.00178837,97240.0,97238.0,0.0586439]
[1738704550712,0.00663426,97242.0,97238.0,0.0586439]
[1738704550922,0.00863426,97242.0,97236.0,0.205685]
[1738704551140,0.00863426,97242.0,97236.0,0.210685]
[1738704551360,0.00663426,97242.0,97236.0,0.005]
[1738704551561,0.003,97240.0,97236.0,0.005]
[1738704551772,0.003,97240.0,97237.0,0.154262]
[1738704551991,0.003,97240.0,97238.0,0.0385751]
[1738704552197,0.00663426,97239.0,97238.0,0.0385751]
[1738704552372,0.00663426,97238.0,97236.0,0.154263]
[1738704552587,0.00663426,97238.0,97235.0,0.17506603]
[1738704552813,0.003,97240.0,97237.0,0.154261]
[1738704553011,0.003,97240.0,97239.0,0.149259]
[1738704553226,0.003,97240.0,97238.0,0.0380751]
[1738704553435,0.003,97240.0,97235.0,0.02080103]
[1738704553436,0.003,97240.0,97239.0,0.154259]
[1738704553660,0.002,97242.0,97238.0,0.004]
[1738704554011,0.002,97242.0,97235.0,0.02080103]
[1738704554346,0.00663426,97245.0,97238.0,0.004]
[1738704554545,0.003,97240.0,97239.0,0.154259]
[1738704554722,0.00663426,97245.0,97239.0,0.2133022]
[1738704555134,0.002,97242.0,97239.0,0.0590432]
[1738704555494,0.002,97242.0,97235.0,0.02580103]
[1738704556115,0.002,97242.0,97241.0,0.154255]
[1738704556351,0.00176704,97266.0,97241.0,0.17838506]
[1738704556352,0.00022471,97266.0,97241.0,0.17838506]
[1738704556498,0.00022471,97266.0,97254.0,0.304235]
[1738704556913,0.00657588,97255.0,97254.0,0.304235]
[1738704557118,0.00022471,97266.0,97265.0,0.304217]
[1738704557312,0.00022471,97266.0,97265.0,0.47848723]
[1738704557575,0.0822491,97285.0,97284.0,0.154187]
[1738704557807,0.0822491,97285.0,97284.0,0.25657206]
[1738704557956,0.08239072,97285.0,97284.0,0.25657206]
[1738704558155,0.00014162,97285.0,97284.0,0.25657206]
[1738704558355,0.00014162,97285.0,97284.0,0.32350437]
[1738704559193,0.00014162,97285.0,97284.0,0.22111931]
[1738704559630,0.00014162,97285.0,97284.0,0.32350437]
[1738704559832,6.2e-07,97285.0,97284.0,0.45360437]
[1738704560026,0.08210223,97335.0,97299.0,0.15]
[1738704560352,0.08210223,97335.0,97312.0,0.304143]
[1738704560575,0.0006965,97313.0,97312.0,0.304143]
[1738704560775,0.08210223,97335.0,97324.0,0.154124]
[1738704560949,0.08239058,97325.0,97324.0,0.154124]
[1738704561091,0.00014148,97325.0,97324.0,0.25650906]
[1738704561295,0.00014148,97325.0,97324.0,0.38605278]
[1738704561500,0.00014148,97325.0,97324.0,0.36305278]
[1738704561698,0.00014148,97325.0,97324.0,0.17926772]
[1738704561951,0.00014148,97325.0,97324.0,0.28165278]
[1738704562092,0.00014148,97325.0,97324.0,0.28835732]
[1738704562923,0.00114148,97325.0,97324.0,0.29535732]
[1738704563125,0.00114148,97325.0,97324.0,0.28835732]
[1738704563324,0.00214148,97325.0,97324.0,0.29535732]
[1738704563548,0.00214148,97325.0,97324.0,0.17282854]
[1738704563744,0.00014148,97325.0,97324.0,0.16082854]
[1738704563950,0.00677574,97325.0,97314.0,0.15414]
[1738704564286,0.00014148,97325.0,97324.0,0.011]
[1738704564485,0.00014148,97325.0,97324.0,0.14544826]
[1738704564686,0.00014148,97325.0,97324.0,0.13944826]
[1738704564840,0.00114148,97325.0,97324.0,0.14644826]
[1738704565986,0.00114148,97325.0,97324.0,0.15244826]
[1738704566189,0.00014148,97325.0,97324.0,0.13944826]
[1738704566324,0.00014148,97325.0,97324.0,0.14605258]
[1738704566527,0.00014148,97325.0,97324.0,0.15205258]
[1738704566729,0.00014148,97325.0,97324.0,0.15005258]
[1738704566955,0.00014148,97325.0,97324.0,0.29605258]
[1738704567469,0.00014148,97325.0,97324.0,0.43725258]
[1738704567714,0.00014148,97325.0,97324.0,0.44061832]
[1738704567860,0.00014148,97325.0,97324.0,0.45961832]
[1738704568076,0.00014148,97325.0,97324.0,0.46361832]
[1738704568272,0.00014148,97325.0,97324.0,0.46025258]
[1738704568772,0.00014148,97325.0,97324.0,0.46361832]
[1738704569127,0.00014148,97325.0,97324.0,0.61274232]
[1738704569340,0.00014148,97325.0,97324.0,0.60874232]
[1738704569507,0.00014148,97325.0,97324.0,0.58437658]
[1738704569704,0.00114148,97325.0,97324.0,0.58937658]
[1738704570134,0.00214148,97325.0,97324.0,0.46317658]
[1738704570309,0.00114148,97325.0,97324.0,0.45017658]
[1738704570548,0.00114148,97325.0,97324.0,0.30717658]
[1738704570747,0.00314148,97325.0,97324.0,0.31417658]
[1738704570938,0.00214148,97325.0,97324.0,0.31417658]
[1738704571145,0.00014148,97325.0,97324.0,0.30017658]
[1738704571341,0.00036619,97325.0,97324.0,0.30017658]
[1738704572108,0.00036619,97325.0,97324.0,0.26311338]
[1738704572310,0.00036619,97325.0,97316.0,0.205514]
[1738704572311,0.00036619,97325.0,97316.0,0.154136]
[1738704572514,0.01,97312.0,97300.0,0.01533657]
[1738704572725,0.01,97309.0,97301.0,0.10238506]
[1738704573151,0.01,97309.0,97308.0,0.154149]
[1738704573323,0.01,97309.0,97308.0,0.10238506]
[1738704573528,0.01,97309.0,97308.0,0.25653406]
[1738704573761,0.01,97309.0,97308.0,0.34589998]
[1738704573969,0.01,97310.0,97309.0,0.20553]
[1738704574094,0.00036619,97325.0,97324.0,0.154124]
[1738704574360,0.01036619,97325.0,97324.0,0.154124]
[1738704574742,0.00036619,97325.0,97324.0,0.154124]
[1738704574971,0.01036619,97325.0,97324.0,0.2106372]
[1738704575378,0.01036619,97325.0,97324.0,0.31302226]
[1738704575572,0.00036619,97325.0,97324.0,0.31302226]
[1738704575979,0.00036619,97325.0,97324.0,0.31978343]
[1738704576393,0.00636619,97325.0,97324.0,0.31978343]
[1738704576593,0.00636619,97325.0,97324.0,0.32478343]
[1738704576594,0.00036619,97325.0,97324.0,0.32478343]
[1738704576848,0.01036619,97325.0,97324.0,0.005]
[1738704577042,0.04098714,97325.0,97321.0,0.17605929]
[1738704577244,0.03062095,97324.0,97323.0,0.154124]
[1738704577406,0.03062095,97324.0,97300.0,0.21316276]
[1738704577407,0.03062095,97324.0,97310.0,0.205528]
[1738704577603,0.04062095,97323.0,97313.0,0.205521]
[1738704577833,0.03062095,97322.0,97321.0,0.154128]
[1738704578028,0.01,97317.0,97314.0,0.03284092]
[1738704578243,0.01,97317.0,97308.0,0.154149]
[1738704578444,0.00136619,97325.0,97280.0,0.0454]
[1738704578445,0.01,97308.0,97303.0,0.0068807]
[1738704578644,0.01,97308.0,97301.0,0.15416]
[1738704578846,0.01,97308.0,97261.0,0.308446]
[1738704578847,0.01,97294.0,97292.0,0.154174]
[1738704579053,0.01,97294.0,97276.0,0.01]
[1738704579250,0.01,97294.0,97289.0,0.00676231]
[1738704579454,0.01,97294.0,97293.0,0.154173]
[1738704579787,0.009949,97294.0,97293.0,0.10238506]
[1738704579994,0.009949,97294.0,97293.0,0.25655806]
[1738704580267,0.009949,97294.0,97293.0,0.10285685]
[1738704580473,0.011949,97294.0,97293.0,0.28787264]
[1738704580673,0.010949,97294.0,97293.0,0.30859897]
[1738704580888,0.009949,97301.0,97293.0,0.15742597]
[1738704581094,0.009949,97295.0,97294.0,0.10238506]
[1738704581532,0.009949,97306.0,97305.0,0.154153]
[1738704581710,0.009949,97303.0,97302.0,0.205544]
[1738704581909,0.009949,97295.0,97294.0,0.10238506]
[1738704582113,0.009949,97304.0,97303.0,0.154157]
[1738704582318,0.009949,97305.0,97304.0,0.0154157]
[1738704582627,0.009949,97301.0,97293.0,0.03677477]
[1738704582826,0.009949,97300.0,97293.0,0.02777477]
[1738704582975,0.009949,97300.0,97293.0,0.03277477]
[1738704583188,0.009949,97297.0,97294.0,0.02683468]
[1738704583422,0.009949,97295.0,97294.0,0.154171]
[1738704583637,0.009949,97294.0,97293.0,0.18705467]
[1738704583768,0.009949,97294.0,97293.0,0.03188167]
[1738704583973,0.009949,97294.0,97293.0,0.03288167]
[1738704584618,0.17075426,97294.0,97293.0,0.00557869]
[1738704585316,0.17075426,97294.0,97293.0,0.00057869]
[1738704585911,0.17075426,97294.0,97293.0,0.00157869]
[1738704585912,0.17575426,97294.0,97293.0,0.00157869]
[1738704586116,0.27813932,97294.0,97293.0,0.00157869]
[1738704586398,0.3887071,97294.0,97293.0,0.00157869]
[1738704586569,0.3887071,97294.0,97244.0,0.041132]
[1738704586570,0.17081626,97255.0,97244.0,0.041132]
[1738704586776,0.17081626,97255.0,97254.0,0.00024862]
[1738704586950,0.20158368,97255.0,97254.0,0.00024862]
[1738704587132,0.20147162,97255.0,97254.0,0.00024862]
[1738704587333,0.30385668,97255.0,97254.0,0.00024862]
[1738704587713,0.40499285,97255.0,97254.0,0.00024862]
[1738704588359,0.164244,97216.0,97214.0,0.004114]
[1738704588567,0.164244,97216.0,97215.0,0.00024797]
[1738704588568,0.009949,97216.0,97215.0,0.00024797]
[1738704588774,0.009949,97230.0,97215.0,0.10263303]
[1738704588976,0.009949,97224.0,97216.0,0.10238506]
[1738704589131,0.009949,97234.0,97216.0,0.10238506]
[1738704589335,0.009949,97234.0,97233.0,0.154268]
[1738704589637,0.0822491,97238.0,97233.0,0.154268]
[1738704589638,0.0921981,97238.0,97235.0,0.154265]
[1738704589838,0.0822491,97248.0,97238.0,0.41136]
[1738704589839,0.009949,97244.0,97238.0,0.41136]
[1738704590039,0.0822491,97248.0,97240.0,0.154257]
[1738704590040,0.009949,97241.0,97240.0,0.154257]
[1738704590338,0.0822491,97248.0,97246.0,0.154247]
[1738704590339,0.009949,97247.0,97246.0,0.154247]
[1738704590956,0.009949,97247.0,97240.0,0.2211007]
[1738704591163,0.009949,97241.0,97240.0,0.1696827]
[1738704593902,0.0164712,97220.0,97219.0,0.00014107]
[1738704594101,0.009949,97208.0,97207.0,0.154308]
[1738704594420,0.009949,97206.0,97205.0,0.01913586]
[1738704594622,0.009949,97206.0,97205.0,0.17344886]
[1738704595620,0.010949,97206.0,97205.0,0.17844886]
[1738704596023,0.001,97206.0,97205.0,0.17844886]
[1738704596711,0.002,97206.0,97205.0,0.18344886]
[1738704596909,0.002,97206.0,97205.0,0.28583392]
[1738704597142,0.002,97206.0,97205.0,0.10238506]
[1738704597324,0.002,97206.0,97205.0,0.34226482]
[1738704598287,0.00196,97206.0,97205.0,0.34226482]
[1738704599228,0.00014136,97220.0,97219.0,0.15429]
[1738704599428,0.00014136,97220.0,97219.0,0.25667506]
[1738704599869,0.00014136,97220.0,97219.0,0.25402776]
[1738704600090,0.00014136,97220.0,97219.0,0.32057574]
[1738704600292,0.00114136,97220.0,97219.0,0.22119068]
[1738704600494,0.01109036,97220.0,97219.0,0.003]
[1738704600694,0.01109036,97220.0,97217.0,0.205725]
[1738704600897,0.01109036,97220.0,97202.0,0.205755]
[1738704600898,0.01109036,97220.0,97208.0,0.205743]
[1738704601141,0.009949,97211.0,97207.0,0.205746]
[1738704601429,0.009949,97211.0,97200.0,0.003524]
[1738704601430,0.009949,97201.0,97200.0,0.003524]
[1738704601996,0.009949,97201.0,97200.0,0.157844]
[1738704602199,0.009949,97201.0,97200.0,0.003524]
[1738704602520,0.0164712,97201.0,97200.0,0.003524]
[1738704603401,0.0174712,97201.0,97200.0,0.003524]
[1738704603601,0.010949,97201.0,97200.0,0.003524]
[1738704603781,0.001,97201.0,97200.0,0.005524]
[1738704603982,0.001,97201.0,97200.0,0.04371414]
[1738704604190,0.001,97201.0,97200.0,0.1460992]
[1738704604426,0.001,97201.0,97200.0,0.15282994]
[1738704605038,0.001,97201.0,97200.0,0.22952994]
[1738704605279,0.00014136,97220.0,97219.0,0.15429]
[1738704605457,0.00014136,97220.0,97219.0,0.169719]
[1738704605657,0.00014136,97220.0,97219.0,0.15429]
[1738704605858,0.00014136,97220.0,97219.0,0.25667506]
[1738704606089,1e-08,97220.0,97219.0,0.25667506]
[1738704606574,0.009949,97234.0,97233.0,0.154268]
[1738704606881,0.01001209,97234.0,97231.0,0.205694]
[1738704607008,0.01001209,97234.0,97220.0,0.205718]
[1738704607009,0.01001209,97234.0,97232.0,0.154269]
[1738704607228,0.01001209,97234.0,97232.0,0.138369]
[1738704607455,0.01001209,97234.0,97231.0,0.0205694]
[1738704607610,0.01001209,97234.0,97232.0,0.15427]
[1738704607809,0.009949,97233.0,97232.0,0.15427]
[1738704609153,0.003,97233.0,97232.0,0.15427]
[1738704609581,0.012949,97233.0,97232.0,0.15427]
[1738704609782,0.00406309,97234.0,97232.0,0.46544646]
[1738704609783,9e-08,97234.0,97232.0,0.46544646]
[1738704609988,0.00022471,97255.0,97254.0,0.154235]
[1738704610154,0.04896133,97257.0,97256.0,0.304232]
[1738704610349,0.04896133,97257.0,97256.0,0.40661706]
[1738704610592,0.04896133,97257.0,97256.0,0.46983329]
[1738704610755,0.0921981,97273.0,97272.0,0.154206]
[1738704610954,0.09233968,97273.0,97272.0,0.154206]
[1738704611423,0.01009058,97273.0,97272.0,0.154206]
[1738704612110,0.00014158,97273.0,97272.0,0.154206]
[1738704612320,0.01009058,97273.0,97272.0,0.19239614]
[1738704612762,0.00014158,97273.0,97272.0,0.19239614]
[1738704612889,0.01009058,97273.0,97272.0,0.03819014]
[1738704613091,0.01009058,97273.0,97272.0,0.19239614]
[1738704613320,0.01009058,97273.0,97272.0,0.19439614]
[1738704613885,0.01009058,97273.0,97272.0,0.19239614]
[1738704614087,0.00014158,97273.0,97272.0,0.19639614]
[1738704614281,0.00014158,97273.0,97272.0,0.04219014]
[1738704614484,0.01009058,97273.0,97272.0,0.04219014]
[1738704614678,0.01009058,97273.0,97272.0,0.04719014]
[1738704614907,0.01009058,97273.0,97272.0,0.04219014]
[1738704615340,0.01109058,97273.0,97272.0,0.04219014]
[1738704615539,0.00014158,97273.0,97272.0,0.03819014]
[1738704615699,0.01661278,97273.0,97272.0,0.002]
[1738704615936,0.01009058,97273.0,97272.0,0.002]
[1738704616415,0.00014158,97273.0,97269.0,0.154211]
[1738704616621,0.00014158,97273.0,97272.0,0.002]
[1738704616827,0.00014158,97273.0,97272.0,0.10438506]
[1738704617030,0.00014158,97273.0,97272.0,0.16696605]
[1738704617262,0.00014158,97273.0,97272.0,0.16496605]
[1738704617459,0.00014158,97273.0,97272.0,0.16696605]
[1738704617588,0.00014158,97273.0,97272.0,0.002]
[1738704618796,0.009949,97257.0,97232.0,0.00531811]
[1738704618991,0.009949,97257.0,97250.0,0.205654]
[1738704619218,0.009949,97257.0,97255.0,0.154232]
[1738704619419,0.009949,97257.0,97250.0,0.205654]
[1738704619625,0.009949,97248.0,97232.0,0.0075066]
[1738704619863,0.009949,97239.0,97233.0,0.10238506]
[1738704619996,0.008949,97239.0,97234.0,0.205689]
[1738704620197,0.008949,97247.0,97238.0,0.02057004]
[1738704620397,0.008949,97239.0,97238.0,0.02057004]
[1738704621051,0.0154712,97233.0,97232.0,0.005]
[1738704621279,0.27212426,97233.0,97232.0,0.005]
[1738704621686,0.0154712,97233.0,97232.0,0.005]
[1738704622498,0.0154712,97233.0,97217.0,0.02052015]
[1738704622499,0.008949,97218.0,97217.0,0.02052015]
[1738704622674,0.008949,97218.0,97217.0,0.32118407]
[1738704622879,0.008949,97227.0,97217.0,0.16689007]
[1738704623076,0.008949,97227.0,97226.0,0.154279]
[1738704623454,0.0065222,97233.0,97226.0,0.154279]
[1738704623455,0.008949,97228.0,97226.0,0.154279]
[1738704623682,0.008949,97227.0,97226.0,0.154279]
[1738704624257,0.008949,97218.0,97217.0,0.01006309]
[1738704624464,0.008949,97218.0,97217.0,0.00406309]
[1738704624465,0.0154712,97218.0,97217.0,0.00406309]
[1738704624669,0.0154712,97218.0,97217.0,6.309e-05]
[1738704624865,0.0065222,97233.0,97228.0,0.154276]
[1738704625068,0.0065222,97233.0,97217.0,0.10244815]
[1738704625069,0.0065222,97240.0,97229.0,0.0154276]
[1738704625276,0.008949,97229.0,97228.0,0.154276]
[1738704625615,0.008949,97231.0,97230.0,0.154273]
[1738704626439,0.0154712,97227.0,97226.0,0.004]
[1738704626590,0.0154712,97227.0,97226.0,0.001]
[1738704626790,0.0154712,97218.0,97217.0,6.309e-05]
[1738704627206,0.27214826,97218.0,97217.0,6.309e-05]
[1738704627451,0.0154712,97201.0,97200.0,0.003631]
[1738704627631,0.0154712,97201.0,97200.0,0.00410287]
[1738704628121,0.1697902,97201.0,97200.0,0.00410287]
[1738704628543,0.0154712,97201.0,97200.0,0.00410287]
[1738704630073,0.0065222,97190.0,97189.0,0.154338]
[1738704630276,0.0065222,97190.0,97189.0,0.18751074]
[1738704630477,0.0154712,97190.0,97189.0,0.154338]
[1738704630682,0.0822491,97207.0,97189.0,0.154338]
[1738704630683,0.008949,97191.0,97190.0,0.154336]
[1738704630887,0.008949,97191.0,97182.0,0.00170718]
[1738704630888,0.008949,97200.0,97199.0,0.154322]
[1738704631021,0.008949,97200.0,97182.0,0.00170718]
[1738704631022,0.0065222,97195.0,97182.0,0.00170718]
[1738704631228,0.008949,97191.0,97189.0,0.154337]
[1738704631435,0.0065222,97189.0,97182.0,0.00170718]
[1738704631643,0.008949,97184.0,97183.0,0.154346]
[1738704631887,0.008949,97184.0,97183.0,0.17665331]
[1738704632265,0.008949,97190.0,97189.0,0.154338]
[1738704632991,0.008949,97185.0,97184.0,0.205793]
[1738704633189,0.008949,97184.0,97183.0,0.02230731]
[1738704633488,0.0154712,97183.0,97182.0,0.00170718]
[1738704634231,0.008949,97183.0,97182.0,0.00170718]
[1738704634772,0.001,97184.0,97182.0,0.15605618]
[1738704634983,0.009949,97183.0,97182.0,0.16305618]
[1738704635174,0.009949,97183.0,97182.0,0.22851966]
[1738704636153,0.009949,97183.0,97182.0,0.16305618]
[1738704636374,0.009949,97183.0,97182.0,0.16705618]
[1738704636577,0.008949,97183.0,97182.0,0.16005618]
[1738704636755,0.008949,97183.0,97182.0,0.15605618]
[1738704636962,0.009949,97183.0,97182.0,0.15096495]
[1738704637239,0.0164712,97183.0,97182.0,0.011]
[1738704637444,0.19385626,97183.0,97182.0,0.011]
[1738704637648,0.0164712,97183.0,97182.0,0.011]
[1738704638266,0.1708182,97183.0,97182.0,0.011]
[1738704638469,0.20747902,97183.0,97182.0,0.004]
[1738704638675,0.17735351,97183.0,97182.0,0.008]
[1738704638877,0.0154712,97183.0,97182.0,0.008]
[1738704639084,0.008949,97183.0,97182.0,0.008]
[1738704639287,0.008949,97186.0,97185.0,0.154344]
[1738704639510,0.0154712,97190.0,97185.0,0.0158344]
[1738704639713,0.0154712,97188.0,97187.0,0.154341]
[1738704639914,0.0154712,97188.0,97184.0,0.205794]
[1738704640045,0.0154712,97185.0,97184.0,0.205794]
[1738704640253,0.0065222,97185.0,97179.0,0.154354]
[1738704640450,0.0154712,97180.0,97179.0,0.154354]
[1738704640818,0.0065222,97180.0,97179.0,0.16174481]
[1738704640956,0.0154712,97180.0,97179.0,0.16174481]
[1738704641591,0.0154712,97180.0,97179.0,0.16774481]
[1738704641790,0.0154712,97180.0,97179.0,0.154354]
[1738704642146,0.0154712,97180.0,97176.0,0.0388656]
[1738704642360,0.0154712,97177.0,97176.0,0.0388656]
[1738704642988,0.16565659,97177.0,97176.0,0.0388656]
[1738704643277,0.11785626,97177.0,97176.0,0.0388656]
[1738704643588,0.11939997,97177.0,97176.0,0.0388656]
[1738704643779,0.17230039,97177.0,97176.0,0.0388656]
[1738704643982,0.17230039,97177.0,97176.0,0.0448656]
[1738704644207,0.17230039,97177.0,97176.0,0.0418656]
[1738704644415,0.09923972,97177.0,97176.0,0.0418656]
[1738704644816,0.1828247,97177.0,97176.0,0.0418656]
[1738704645172,0.1918247,97177.0,97176.0,0.0428656]
[1738704645374,0.23977411,97177.0,97176.0,0.0398656]
[1738704645736,0.16518913,97177.0,97176.0,0.0408656]
[1738704645894,0.1941621,97177.0,97176.0,0.0408656]
[1738704646113,0.2041621,97177.0,97176.0,0.0408656]
[1738704646264,0.38119643,97177.0,97176.0,0.0388656]
[1738704646462,0.232513,97177.0,97176.0,0.0388656]
[1738704646742,0.242513,97177.0,97176.0,0.0398656]
[1738704646879,0.154379,97163.0,97162.0,0.29269079]
[1738704647060,0.26676406,97163.0,97162.0,0.29269079]
[1738704647266,0.10238506,97163.0,97162.0,0.29269079]
[1738704647747,0.10238506,97163.0,97162.0,0.29260171]
[1738704647947,0.23131057,97163.0,97162.0,0.29260171]
[1738704648121,0.22947853,97163.0,97162.0,0.21541714]